[Event "Croatian 1A League 2022"]
[Site "Porec"]
[Date "2022.09.27"]
[Round "4.26"]
[White "Fercec, Nenad"]
[Black "Hracek, Zbynek"]
[Result "0-1"]
[ECO "B40"]
[WhiteElo "2403"]
[BlackElo "2556"]
[Annotator "TA"]
[PlyCount "84"]
[EventDate "2022.09.24"]
[EventType "team-tourn"]
[EventCountry "CRO"]
[SourceTitle "playchess.com"]
[Source "ChessBase"]
[SourceQuality "1"]
[TimeControl "40/5400+30:1800+30"]

{[%evp 18,84,19,1,31,-3,25,0,0,0,0,0,0,0,0,-10,0,-7,0,0,0,0,0,-4,0,0,0,0,20,19,9,7,20,-64,-55,-159,-47,-45,-44,-122,-120,-467,-489,-489,-475,-609,-487,-602,-566,-783,-766,-945,-922,-960,-932,-29984,-29956,-29956,-29956,-29956,-29957,-29957,-12491,-29966,-29968,-29968,-29968,-5543,-4629]} 1. e4 {[%emt 0:00:08]} e6 {[%emt 0:00:04]} 2. d4 {[%emt 0:00:05]} d5 {[%emt 0:00:04]} 3. Nd2 {[%emt 0:00:07]} c5 {[%emt 0:00:12]} 4. Ngf3 {[%emt 0:00:43]} cxd4 {[%emt 0:00:09]} 5. Nxd4 {[%emt 0:04:00]} Nc6 {[%emt 0:00:31]} 6. Nxc6 {[%emt 0:00:28]} bxc6 {[%emt 0:00:06]} 7. Bd3 {[%emt 0:00:11]} Nf6 {[%emt 0:09:31]} 8. O-O {[%emt 0:08:08]} Be7 {[%emt 0:01:55]} 9. b3 {[%emt 0:01:52]} O-O {[%emt 0:03:22]} 10. Bb2 {[%emt 0:00:13]} Bb7 {[%emt 0:16:51] B40: Sicilian: 2...e6, Unusual lines.} 11. Qe2 {[%emt 0:26:56]} c5 {[%emt 0:17:36]} 12. c4 {[%emt 0:01:04]} d4 {[%emt 0:02:41] The position is equal.} 13. e5 {[%emt 0:00:45]} Nd7 {[%emt 0:00:04]} 14. f4 {[%emt 0:05:55]} g6 {[%emt 0:05:04]} 15. Ne4 {[%emt 0:01:00]} a5 {[%emt 0:02:04]} 16. a4 {[%emt 0:10:14] [#]} Qb6 $146 {[%emt 0:04:34]} ({Predecessor:} 16... Rb8 17. Bc2 Bc6 18. Ba3 Rb6 19. Rae1 Bxe4 20. Qxe4 Nb8 21. Rf3 Nc6 22. g3 Qa8 {1-0 (71) Ruck,T (2321)-Wolter,K (2320) Koszeg 1999}) 17. Rab1 {[%emt 0:06:11]} f5 {[%emt 0:04:49]} 18. exf6 $1 {[%emt 0:00:00]} Bxf6 {[%emt 0:01:26]} 19. Bc1 {[%emt 0:00:00]} Bg7 {[%emt 0:04:25]} 20. Ng5 {[%emt 0:05:29]} Rae8 {[%emt 0:09:27]} 21. Qg4 $1 {[%emt 0:00:23][%cal Og5h7] aiming for Nxh7!} Nf6 {[%emt 0:03:26]} 22. Qh3 {[%emt 0:00:16]} Bc8 {[%emt 0:07:40][%cal Bb7c8,Bc8f5,Bf5d3][%mdl 32] And now ...e5 would win.} 23. Qh4 {[%emt 0:18:43]} e5 $132 {[%emt 0:00:05][%mdl 2048] Black puts up resistance} 24. fxe5 {[%emt 0:00:27]} Rxe5 {[%emt 0:00:02]} 25. Rxf6 {[%emt 0:05:20]} Rxf6 $15 {[%emt 0:00:02]} 26. Qxh7+ {[%emt 0:00:09]} ({But not} 26. Nxh7 $2 Rff5 27. Ng5 Qf6 28. Bxf5 Qxf5 $19) 26... Kf8 {[%emt 0:00:03] ( -> ...Re1+). Dancing on a razor blade. Black is more active.} 27. Qh4 {[%emt 0:00:58] Prevents Re1+. Hoping for Bf4.} Bf5 {[%emt 0:03:20]} 28. Nh7+ {[%emt 0:00:35] [#]} (28. Bxf5 $15 Rfxf5 29. g4) 28... Kf7 $1 $17 {[%emt 0:02:38]} 29. Nxf6 $4 {[%emt 0:00:12][%mdl 8192] Now White is beyond hope.} (29. Bxf5 $17 {nothing else works.} Rfxf5 30. g4) 29... Bxd3 $19 {[%emt 0:00:15]} ({Less strong is} 29... Qxf6 30. Bg5 Qe6 31. Bxf5 Rxf5 32. Re1 $16) 30. Nd7 {[%emt 0:00:04] [#]} Rf5 $1 {[%emt 0:00:23][%csl Gd3][%cal Rf5f1]} 31. Bg5 {[%emt 0:00:38]} (31. Bh6 Qe6) 31... Qe6 {[%emt 0:01:17]} 32. Re1 {[%emt 0:02:08] Nxc5 is the strong threat.} Qxd7 {[%emt 0:01:02]} 33. Qg3 {[%emt 0:00:08] [#]} Rxg5 $1 {[%emt 0:01:07]} 34. Qxg5 {[%emt 0:00:10]} (34. Qxd3 Bf6) 34... Bf5 {[%emt 0:00:08] A strong pair of Bishops.} 35. h3 {[%emt 0:00:35]} d3 {[%emt 0:00:20]} 36. g4 {[%emt 0:00:04]} Qd4+ {[%emt 0:00:43]} 37. Kf1 {[%emt 0:01:01]} d2 {[%emt 0:00:39]} 38. Qe7+ {[%emt 0:00:18]} Kg8 {[%emt 0:00:00]} 39. gxf5 {[%emt 0:00:10]} dxe1=Q+ {[%emt 0:00:10]} (39... dxe1=R+ $142 40. Qxe1 Qd3+ 41. Kg2 Qxf5 42. Qe8+ Kh7 43. Qe3 Qc2+ 44. Kh1 Bf6 45. Qf3 Bd4 46. Qf7+ Kh6 47. Qf4+ Kg7 48. Qc7+ Kf6 49. Qd8+ Kf5 50. Qf8+ Ke4 51. Qf1 Qd3 52. Qg2+ Qf3 53. Kh2 Qxg2+ 54. Kxg2 Kd3 55. Kh2 Kc3 56. h4 Kxb3 57. Kh3 Kxc4 58. Kg3 Kd3 59. Kh2 c4 60. h5 c3 61. Kh3 c2 62. hxg6 c1=Q 63. g7 Qg5 64. g8=Q Qxg8 65. Kh4 Ke4 66. Kh3 Kf3 67. Kh4 Qg4#) 40. Kxe1 {[%emt 0:00:00]} Qe5+ {[%emt 0:00:00]} 41. Qxe5 {[%emt 0:00:25]} Bxe5 {[%emt 0:00:22]} 42. fxg6 {[%emt 0:00:09]} Kg7 {[%emt 0:00:04] Weighted Error Value: White=0.80/Black=0.42} 0-1

[Event "Croatian 1A League 2022"]
[Site "Porec"]
[Date "2022.09.27"]
[Round "4.27"]
[White "Leventic, Ivan"]
[Black "Krsnik Cohar, Ivan Vihor"]
[Result "1/2-1/2"]
[ECO "C77"]
[WhiteElo "2384"]
[BlackElo "2296"]
[Annotator "TA"]
[PlyCount "29"]
[EventDate "2022.09.24"]
[EventType "team-tourn"]
[EventCountry "CRO"]
[SourceTitle "playchess.com"]
[Source "ChessBase"]
[SourceQuality "1"]
[TimeControl "40/5400+30:1800+30"]

{[%evp 19,29,0,2,9,8,11,60,66,55,54,57,78]} 1. e4 {[%emt 0:00:05]} e5 {[%emt 0:02:18]} 2. Nf3 {[%emt 0:00:51]} Nc6 {[%emt 0:00:31]} 3. Bb5 {[%emt 0:00:19]} a6 {[%emt 0:00:09]} 4. Ba4 {[%emt 0:01:07]} Nf6 {[%emt 0:01:12]} 5. d4 {[%emt 0:01:51]} exd4 {[%emt 0:08:31]} 6. e5 {[%emt 0:01:56]} Ne4 {[%emt 0:00:17]} 7. O-O {[%emt 0:00:28]} Nc5 {[%emt 0:06:29]} 8. Bxc6 {[%emt 0:04:39]} dxc6 {[%emt 0:00:07]} 9. Nxd4 {[%emt 0:00:38]} Be7 {[%emt 0:00:07]} 10. Nc3 {[%emt 0:01:23]} O-O {[%emt 0:00:14]} 11. Be3 {[%emt 0:00:48] C77: Ruy Lopez: 3...a6 4 Ba4 Nf6, unusual lines.} Ne6 {[%emt 0:03:05]} 12. Nf5 {[%emt 0:17:01]} Bc5 {[%emt 0:00:25]} (12... f6 $1 $11 {was preferrable.}) 13. Qe2 {[%emt 0:01:55] aiming for Ne4. White is slightly better.} Bxe3 {[%emt 0:18:54]} 14. Qxe3 {[%emt 0:00:47] [#] Strongly threatening Ne4.} ({Don't play} 14. Nxe3 Qg5 $15) ({Much worse is} 14. fxe3 Nc5 $11) 14... f6 $146 {[%emt 0:02:54]} ({Predecessor:} 14... Qg5 15. Qxg5 Nxg5 16. Ne7+ Kh8 17. f4 Ne6 18. Rad1 Nc5 19. f5 a5 20. Rf4 b6 21. Nxc6 {1-0 (61) Weigel,H (2096)-Jaton,P (1890) Ellwangen 1995}) 15. Rad1 {[%emt 0:12:18] Black did not feel at home in the position after the opening.  Weighted Error Value: White=0.00 (flawless) /Black=0.09 (flawless)} 1/2-1/2

[Event "Croatian 1A League 2022"]
[Site "Porec"]
[Date "2022.09.27"]
[Round "4.28"]
[White "Franic, Milan"]
[Black "Zivkovic, Vjekoslav"]
[Result "1/2-1/2"]
[ECO "E46"]
[WhiteElo "2365"]
[BlackElo "2364"]
[Annotator "TA"]
[PlyCount "48"]
[EventDate "2022.09.24"]
[EventType "team-tourn"]
[EventCountry "CRO"]
[SourceTitle "playchess.com"]
[Source "ChessBase"]
[SourceQuality "1"]
[TimeControl "40/5400+30:1800+30"]

{[%evp 12,48,0,-18,5,17,39,0,52,52,51,55,47,33,58,49,67,54,72,33,34,33,44,38,38,25,45,38,53,45,55,54,58,18,6,0,0,0,13]} 1. d4 {[%emt 0:02:59]} Nf6 {[%emt 0:00:05]} 2. c4 {[%emt 0:00:08]} e6 {[%emt 0:00:05]} 3. Nc3 {[%emt 0:00:17]} Bb4 {[%emt 0:00:05]} 4. e3 {[%emt 0:00:21]} O-O {[%emt 0:00:15]} 5. Nge2 {[%emt 0:00:07]} Re8 {[%emt 0:00:07]} 6. a3 {[%emt 0:00:57]} Bf8 {[%emt 0:00:25]} 7. d5 {[%emt 0:03:11]} d6 {[%emt 0:24:47] E46: Nimzo-Indian: Rubinstein: 4 e3 0-0 5 Ne2 without early Bd3.} 8. g3 {[%emt 0:00:54]} e5 {[%emt 0:11:40]} 9. Bg2 {[%emt 0:00:11]} g6 {[%emt 0:00:31]} (9... e4 $11) 10. e4 $14 {[%emt 0:03:12]} a5 {[%emt 0:05:42]} 11. O-O {[%emt 0:01:08]} Nbd7 {[%emt 0:01:08] [#]} 12. Bg5 $146 {[%emt 0:13:31]} ({Predecessor:} 12. h3 Bg7 13. Rb1 Nb6 14. Qd3 a4 15. Be3 Nfd7 16. Na2 Nc5 17. Qc2 Bd7 18. Rbd1 {0-1 (40) Hambleton,A (2454)-Fischer,D (2273) Chess.com INT 2021}) 12... h6 {[%emt 0:01:44]} 13. Be3 {[%emt 0:08:32]} Ng4 {[%emt 0:00:48]} 14. Bd2 {[%emt 0:00:09]} Nb6 {[%emt 0:00:10]} 15. f3 {[%emt 0:01:38]} Nf6 {[%emt 0:00:20][%cal Bg4f6,Bf6d7,Bd7c5][%mdl 32]} 16. b3 {[%emt 0:00:05][%cal Bb2b3,Bb3a4][%mdl 32]} a4 {[%emt 0:00:07]} 17. Nxa4 {[%emt 0:01:03]} Nxa4 {[%emt 0:00:14]} 18. bxa4 {[%emt 0:00:03]} Nd7 {[%emt 0:03:20]} 19. a5 {[%emt 0:12:14]} Nc5 {[%emt 0:00:28]} 20. Nc1 {[%emt 0:00:11]} Bd7 {[%emt 0:02:14]} 21. Rb1 {[%emt 0:01:21]} b6 {[%emt 0:06:35]} 22. axb6 {[%emt 0:05:19]} cxb6 {[%emt 0:00:26] The position is equal.} 23. Bb4 {[%emt 0:00:09]} h5 {[%emt 0:02:50][%cal Bh6h5,Bh5h4][%mdl 32]} 24. Qe2 {[%emt 0:02:48]} h4 {[%emt 0:02:06] Weighted Error Value: White=0.09 (flawless) /Black=0.16 (very precise)} 1/2-1/2

[Event "Croatian 1A League 2022"]
[Site "Porec"]
[Date "2022.09.27"]
[Round "4.29"]
[White "Medak, Bojan"]
[Black "Glavas, Dragan"]
[Result "1/2-1/2"]
[ECO "D36"]
[WhiteElo "2353"]
[BlackElo "2249"]
[Annotator "TA"]
[PlyCount "32"]
[EventDate "2022.09.24"]
[EventType "team-tourn"]
[EventCountry "CRO"]
[SourceTitle "playchess.com"]
[Source "ChessBase"]
[SourceQuality "1"]
[TimeControl "40/5400+30:1800+30"]

{[%evp 24,32,33,12,10,6,2,-8,-8,-8,-13]} 1. c4 {[%emt 0:00:05]} e6 {[%emt 0:00:19]} 2. Nc3 {[%emt 0:00:24]} d5 {[%emt 0:00:18]} 3. d4 {[%emt 0:00:22]} Nf6 {[%emt 0:04:14]} 4. cxd5 {[%emt 0:02:25]} exd5 {[%emt 0:00:32]} 5. Bg5 {[%emt 0:00:23]} Be7 {[%emt 0:00:33]} 6. e3 {[%emt 0:00:12]} c6 {[%emt 0:00:44]} 7. Bd3 {[%emt 0:00:29]} Nbd7 {[%emt 0:03:51]} 8. Qc2 {[%emt 0:01:09]} O-O {[%emt 0:00:00]} 9. Nge2 {[%emt 0:01:53]} Re8 {[%emt 0:02:19]} 10. O-O {[%emt 0:03:21]} h6 {[%emt 0:06:04]} 11. Bh4 {[%emt 0:06:01]} Ne4 {[%emt 0:07:34]} 12. Bxe7 {[%emt 0:09:00]} Qxe7 {[%emt 0:00:25]} 13. Rad1 {[%emt 0:05:38]} Ndf6 {[%emt 0:02:49] [#] The position is equal. D36: Queen's Gambit Declined: Exchange Variation: Main line (5 Bg5 c6 6 Qc2).} 14. h3 $146 {[%emt 0:12:47]} ({Predecessor:} 14. f3 Nxc3 15. Nxc3 Qb4 16. a3 Qb6 17. Na4 Qd8 18. Qf2 Re7 19. h3 b6 20. Nc3 Be6 21. e4 c5 22. e5 Nd7 23. f4 cxd4 24. Qxd4 Nc5 25. f5 Nxd3 {1-0 (25) Yakovich,Y (2525)-Belyi,V (2102) Vladivostok 2012}) 14... Bf5 {[%emt 0:12:23]} 15. Bxe4 {[%emt 0:13:11]} Bxe4 {[%emt 0:12:50]} 16. Nxe4 {[%emt 0:01:27]} Nxe4 {[%emt 0:00:10] A rather calm draw.  Weighted Error Value: White=0.11 (very precise) /Black=0.00 (flawless)} 1/2-1/2

[Event "Croatian 1A League 2022"]
[Site "Porec"]
[Date "2022.09.27"]
[Round "4.30"]
[White "Rubil, Marko"]
[Black "Mrkonjic, Nenad"]
[Result "0-1"]
[ECO "B12"]
[WhiteElo "2270"]
[BlackElo "2347"]
[Annotator "TA"]
[PlyCount "57"]
[EventDate "2022.09.24"]
[EventType "team-tourn"]
[EventCountry "CRO"]
[SourceTitle "playchess.com"]
[Source "ChessBase"]
[SourceQuality "1"]
[TimeControl "40/5400+30:1800+30"]

{[%evp 9,57,0,34,31,67,49,64,29,40,30,47,43,75,51,60,66,86,56,52,40,33,0,46,31,104,64,142,143,116,106,137,106,143,89,88,74,62,38,26,-27,-29,-460,-456,-450,-450,-430,-427,-577,-568,-942]} 1. e4 {[%emt 0:02:58]} c6 {[%emt 0:01:14]} 2. d4 {[%emt 0:00:07]} d5 {[%emt 0:00:24]} 3. e5 {[%emt 0:00:04]} c5 {[%emt 0:02:54]} 4. dxc5 {[%emt 0:02:05]} e6 {[%emt 0:01:18]} 5. a3 {[%emt 0:10:27]} Nd7 {[%emt 0:03:27]} 6. Nf3 {[%emt 0:19:15] B12: Caro-Kann: Advance Variation.} a5 {[%emt 0:11:40]} 7. Bb5 {[%emt 0:07:29] [#]} Bxc5 $146 {[%emt 0:00:45]} ({Predecessor:} 7... Ne7 8. O-O Nc6 9. b3 Bxc5 10. Bb2 O-O 11. Nbd2 Qc7 12. Re1 Nd4 13. Nxd4 Bxd4 14. Bxd4 {1-0 (34) Awoki,D (2152)-Piliczewski,B (1938) Chess.com INT 2021}) 8. Nc3 {[%emt 0:00:58][%cal Oc3d5] White is slightly better.} (8. c4 $5 {[%cal Rc4d5]}) 8... Ne7 {[%emt 0:00:43]} 9. O-O {[%emt 0:00:27]} Ng6 {[%emt 0:09:22]} 10. Na4 {[%emt 0:10:31]} Ba7 {[%emt 0:15:59]} 11. Bg5 {[%emt 0:00:49]} Qc7 {[%emt 0:00:28]} 12. c4 $1 $36 {[%emt 0:10:19][%mdl 2048] Black is under pressure.} d4 {[%emt 0:09:18]} 13. Re1 {[%emt 0:11:46]} h6 {[%emt 0:01:27]} 14. Bd2 {[%emt 0:07:51]} O-O {[%emt 0:01:41][%cal Rd7e5]} 15. b4 {[%emt 0:02:12][%cal Bb2b4,Bb4a5,Ba5b6][%mdl 32]} (15. c5 $5 {[%cal Ra1c1]}) 15... Rd8 {[%emt 0:01:03]} (15... Ngxe5 $11 16. Bf4 Nxf3+ 17. Qxf3 e5) 16. c5 {[%emt 0:02:13]} Ndf8 {[%emt 0:05:27]} ({Black should play} 16... Ndxe5 $14 17. Nxe5 Nxe5) 17. bxa5 {[%emt 0:01:35]} Rb8 {[%emt 0:01:19]} (17... Bd7 $14 18. Rb1 (18. Nxd4 Be8 $15) 18... Bxc5) 18. Rc1 {[%emt 0:01:17]} Bd7 {[%emt 0:03:08]} 19. Bxd7 {[%emt 0:02:45]} (19. Nxd4 $6 Be8 20. Bxe8 Rxd4 $11) 19... Qxd7 {[%emt 0:05:07]} 20. Nb6 {[%emt 0:00:16]} Qc6 {[%emt 0:01:04]} 21. Rc4 {[%emt 0:02:47]} (21. Qb3 $142) 21... Bxb6 $16 {[%emt 0:02:07]} 22. axb6 {[%emt 0:00:00]} Nd7 {[%emt 0:00:35]} 23. Qc1 {[%emt 0:02:26]} ({Much worse is} 23. Nxd4 $6 Qd5 24. Qe2 Ndxe5 $15) 23... Rbc8 $1 {[%emt 0:00:17][%cal Od7b6] [#]} 24. Nxd4 {[%emt 0:00:43]} (24. Bxh6 $142 $1 Nxb6 25. Rxd4 (25. Nxd4 Qd5 $15) 25... Rxd4 26. Nxd4 Qxc5 27. Qxc5 Rxc5 28. Be3) 24... Qd5 $11 {[%emt 0:00:15]} 25. Nb5 $2 {[%emt 0:01:06][%mdl 8192] This move loses the game for White.} (25. Be3 $11 {and White stays safe.} Ngxe5 26. Rc3 Rxc5 27. Rxc5 Nxc5 28. Nf5 exf5 29. Qxc5) 25... Rxc5 $19 {[%emt 0:01:37] Black is clearly winning.} 26. Rxc5 {[%emt 0:00:29]} Nxc5 {[%emt 0:00:03]} 27. Nd6 {[%emt 0:00:34]} Nxe5 {[%emt 0:00:53]} 28. Bb4 {[%emt 0:00:28]} Ned3 {[%emt 0:00:24] Pair of Knights!} ({Worse is} 28... Qxd6 29. Qxc5 Qxc5 30. Bxc5 $15) 29. Qe3 {[%emt 0:01:03] Weighted Error Value: White=0.39/Black=0.21 (precise)} 0-1

[Event "Croatian 1A League 2022"]
[Site "Porec"]
[Date "2022.09.28"]
[Round "5.1"]
[White "Vavulin, Maxim"]
[Black "Saric, Ivan"]
[Result "0-1"]
[ECO "B89"]
[WhiteElo "2550"]
[BlackElo "2668"]
[Annotator "TA"]
[PlyCount "142"]
[EventDate "2022.09.24"]
[EventType "team-tourn"]
[EventCountry "CRO"]
[SourceTitle "playchess.com"]
[Source "ChessBase"]
[SourceQuality "1"]
[TimeControl "40/5400+30:1800+30"]

{[%evp 16,142,10,16,18,0,0,0,15,12,22,24,69,22,30,6,18,8,61,54,112,103,112,80,128,52,64,13,33,28,28,0,51,45,45,14,0,0,0,-50,0,0,0,14,152,-54,0,-54,14,12,4,0,0,0,0,-72,0,-43,0,0,0,0,0,0,0,-41,0,0,0,0,0,0,0,0,0,0,0,0,0,0,0,0,0,0,0,0,0,0,0,0,0,0,0,-26,-26,-26,-26,-26,-26,-26,0,0,0,0,0,-420,-405,-287,-287,-29977,-29978,-29977,-29978,-29979,-29980,-29980,-29981,-29981,-29982,-29982,-29983,-29983,-29984,-29984,-29982,-29982,-29983,-29981,-29980]} 1. e4 {[%emt 0:00:02]} c5 {[%emt 0:00:26]} 2. Nf3 {[%emt 0:00:16]} d6 {[%emt 0:00:04]} 3. d4 {[%emt 0:00:25]} cxd4 {[%emt 0:00:05]} 4. Nxd4 {[%emt 0:00:07]} Nf6 {[%emt 0:00:04]} 5. Nc3 {[%emt 0:00:10]} Nc6 {[%emt 0:00:15]} 6. Bc4 {[%emt 0:01:10]} e6 {[%emt 0:00:06]} 7. Be3 {[%emt 0:00:45]} a6 {[%emt 0:00:19]} 8. Qe2 {[%emt 0:01:33]} Bd7 {[%emt 0:00:35] 8...Be7 is becoming the main line.} 9. Bb3 {[%emt 0:11:25]} b5 {[%emt 0:01:26] B89: Sicilian: Velimirovic Attack.} 10. f3 {[%emt 0:09:03]} Na5 {[%emt 0:06:25]} 11. g4 {[%emt 0:02:16] [#]} e5 $146 {[%emt 0:03:44] The position is equal.} ({Predecessor:} 11... g6 12. Qf2 Nxb3 13. axb3 e5 14. Nde2 b4 15. Na4 Bxa4 16. Rxa4 d5 17. O-O d4 {½-½ (40) Lane,G (2351)-Johansen,D (2392) Auckland 2014}) 12. Nf5 {[%emt 0:01:23] White wants to play g5.} Nxb3 {[%emt 0:00:26]} 13. axb3 {[%emt 0:00:39]} g6 {[%emt 0:00:54]} 14. Ng3 {[%emt 0:08:55]} (14. g5 $1 $14) 14... b4 $11 {[%emt 0:07:30]} 15. Na4 {[%emt 0:08:10][%cal Bc3a4,Ba4b6,Bb6d5][%mdl 32] Threatening Nb6.} Rb8 {[%emt 0:02:04] Against Nb6} 16. Qf2 {[%emt 0:13:58]} Bb5 {[%emt 0:04:41]} (16... d5 $11) 17. Nb6 $14 {[%emt 0:02:16]} h5 {[%emt 0:05:55]} (17... Be7 $14) 18. g5 $16 {[%emt 0:08:46]} Nd7 {[%emt 0:05:20][%cal Rd7b6]} 19. Nd5 {[%emt 0:00:16]} Bg7 {[%emt 0:01:50]} (19... Bc6 $142) 20. Rg1 {[%emt 0:00:44]} (20. Nxb4 $16 {Strongly threatening Qd2.} O-O 21. Nd5 (21. Nxa6 Ra8 $11)) 20... a5 $1 $14 {[%emt 0:01:00]} 21. Rd1 {[%emt 0:13:35]} ({White should try} 21. Qd2 $14) 21... Bc6 {[%emt 0:01:40]} 22. Kf1 {[%emt 0:01:34]} Rb5 {[%emt 0:04:00]} 23. Qe2 {[%emt 0:01:00]} Qb8 {[%emt 0:02:03]} (23... Nf8 $11) 24. Qc4 {[%emt 0:03:31]} Qb7 {[%emt 0:06:40]} 25. Kg2 {[%emt 0:02:00][%cal Od5f6]} h4 {[%emt 0:03:59] ...Bxd5 is the strong threat.} 26. Nh1 {[%emt 0:01:19]} Bxd5 {[%emt 0:04:10]} 27. exd5 {[%emt 0:00:49]} (27. Rxd5 $11 h3+ 28. Kg3 Rxd5 29. exd5) 27... f5 {[%emt 0:03:31]} (27... h3+ $15 28. Kg3 Ke7) 28. gxf6 $1 $11 {[%emt 0:02:00]} Nxf6 {[%emt 0:00:16]} 29. Nf2 {[%emt 0:01:10]} Nxd5 {[%emt 0:08:35]} (29... Rxd5 $11 30. Ne4 Rxd1 31. Rxd1 Nxe4) 30. Rge1 $2 {[%emt 0:00:01]} (30. Bg5 $16) 30... O-O {[%emt 0:01:42]} (30... Nxe3+ $15 31. Rxe3 d5) 31. Qxh4 {[%emt 0:05:42]} (31. Bb6 $11) 31... Nf4+ {[%emt 0:12:19]} (31... Nxe3+ $15 32. Rxe3 d5) 32. Bxf4 {[%emt 0:00:15]} Rxf4 {[%emt 0:00:03] Really sharp!} 33. Qg3 {[%emt 0:01:12]} Qc6 {[%emt 0:00:28]} 34. Rd3 {[%emt 0:00:30]} d5 {[%emt 0:00:51][%cal Bd6d5,Bd5d4][%mdl 32]} 35. Re2 {[%emt 0:00:30]} (35. c4 $11 bxc3 36. Rxc3) 35... Rb7 {[%emt 0:03:27]} ({Black should play} 35... Rc5 $17) 36. Rde3 {[%emt 0:00:23]} (36. c4 $5 {[%cal Rc4d5]} bxc3 37. Rxc3 $11) 36... d4 {[%emt 0:07:37]} 37. Re4 {[%emt 0:00:08]} Rbf7 {[%emt 0:00:23]} 38. Rxf4 {[%emt 0:00:39]} Rxf4 {[%emt 0:00:07]} 39. Nd3 {[%emt 0:00:38]} Rf5 {[%emt 0:00:16]} 40. Nf2 {[%emt 0:00:00]} Kh7 {[%emt 0:00:00]} 41. Qh4+ {[%emt 0:12:22]} Rh5 {[%emt 0:02:27]} 42. Qe4 {[%emt 0:00:20]} Qf6 {[%emt 0:00:56]} 43. Re1 {[%emt 0:11:15]} Qg5+ {[%emt 0:01:32]} 44. Ng4 {[%emt 0:00:40]} Qh4 {[%emt 0:00:30]} 45. Rg1 {[%emt 0:00:51]} Rf5 {[%emt 0:01:36]} 46. Qe2 {[%emt 0:00:34]} ({Of course not} 46. Kh1 Qh3 47. Nf2 (47. Re1 $2 Rxf3 48. Rg1 Rf4 $19) 47... Qxf3+ 48. Qxf3 Rxf3 $17) 46... Qg5 {[%emt 0:06:27]} 47. Kh1 {[%emt 0:03:09]} Qf4 {[%emt 0:00:32]} 48. Rg3 {[%emt 0:01:28]} Rh5 {[%emt 0:02:22]} 49. Kg2 {[%emt 0:00:31]} Bh6 {[%emt 0:13:16][%cal Bg7h6,Bh6g5,Bg5f4][%mdl 32]} 50. Qd3 {[%emt 0:02:49][%cal Og4e5]} Bg5 {[%emt 0:01:10]} 51. Nf2 {[%emt 0:01:13]} Qf5 {[%emt 0:02:03]} 52. Qc4 {[%emt 0:01:27]} Bf4 {[%emt 0:00:30]} 53. Qc7+ {[%emt 0:00:24]} Kg8 {[%emt 0:00:57][%cal Bh7g8,Bg8g7,Bg7f7,Bf7e6,Be6f5,Bf5e4,Be4f4,Bf4g4,Bg4h3,Bh3h2][%mdl 32]} 54. Qd8+ {[%emt 0:00:29]} Kg7 {[%emt 0:00:25]} 55. Qe7+ {[%emt 0:00:26]} Qf7 {[%emt 0:00:37]} 56. Qxf7+ {[%emt 0:00:07]} Kxf7 {[%emt 0:00:04]} 57. Rh3 {[%emt 0:00:05]} Rxh3 {[%emt 0:03:41]} 58. Kxh3 {[%emt 0:00:19][%mdl 4096] Endgame KB-KN} Ke6 {[%emt 0:00:07]} 59. Nd3 {[%emt 0:01:21]} Kf5 {[%emt 0:00:05] White must now prevent ...e4.} 60. Kg2 $2 {[%emt 0:00:32][%mdl 8192] [#]} (60. Nc5 $11 {and White is okay.}) 60... e4 $1 $19 {[%emt 0:00:42]} 61. fxe4+ {[%emt 0:00:49]} Kxe4 {[%emt 0:00:05] aiming for ...Ke3.} 62. Nxf4 $2 {[%emt 0:00:32]} (62. Kf1 $19 Bxh2 63. Ke2) 62... Kxf4 {[%emt 0:00:06] KP-KP. Black mates.} 63. Kf2 {[%emt 0:00:09] [#]} Kg4 $1 {[%emt 0:01:16]} 64. Kg2 {[%emt 0:00:24]} g5 {[%emt 0:00:40]} 65. Kf2 {[%emt 0:00:55]} Kh3 {[%emt 0:00:29]} 66. Kf3 {[%emt 0:00:28]} Kxh2 {[%emt 0:00:12]} 67. Kg4 {[%emt 0:00:04]} a4 {[%emt 0:00:39]} 68. bxa4 {[%emt 0:00:05]} b3 $1 {[%emt 0:00:04]} 69. cxb3 {[%emt 0:00:10]} d3 {[%emt 0:00:04]} 70. Kf3 {[%emt 0:00:06]} g4+ {[%emt 0:00:06][%cal Bg5g4,Bg4g3][%mdl 32]} 71. Ke3 {[%emt 0:00:08]} g3 {[%emt 0:00:04] Weighted Error Value: White=0.30/Black=0.15 (very precise)} 0-1